[Event "30th Abu Dhabi Festival A-Open 2024"]
[Site "Abu Dhabi"]
[Date "2024.08.17"]
[Round "2.7"]
[White "Bolys, Tolegen"]
[Black "Kuandykuly, Danis"]
[Result "1/2-1/2"]
[ECO "B22"]
[WhiteElo "1911"]
[BlackElo "2224"]
[Annotator "ChessBase"]
[PlyCount "152"]
[EventDate "2024.08.15"]
[EventType "swiss"]
[EventCountry "UAE"]
[SourceTitle "playchess.com"]
[Source "ChessBase"]
[SourceQuality "1"]
[TimeControl "5400+30"]

1. e4 {[%emt 0:06:13]} c5 {[%emt 0:00:15]} 2. c3 {[%emt 0:00:11]} Nf6 {[%emt 0:00:07]} 3. e5 {[%emt 0:00:04]} Nd5 {[%emt 0:00:06]} 4. d4 {[%emt 0:00:02]} cxd4 {[%emt 0:00:05]} 5. Nf3 {[%emt 0:00:02]} Nc6 {[%emt 0:00:07]} 6. cxd4 {[%emt 0:00:09]} d6 {[%emt 0:00:05]} 7. Bc4 {[%emt 0:00:04]} Nb6 {[%emt 0:00:04]} 8. Bb5 {[%emt 0:00:04]} dxe5 {[%emt 0:00:53]} 9. Nxe5 {[%emt 0:00:06]} Bd7 {[%emt 0:00:15]} 10. Nxd7 {[%emt 0:00:11]} Qxd7 {[%emt 0:00:08]} 11. Nc3 {[%emt 0:00:03]} Rd8 {[%emt 0:14:26]} 12. Be3 {[%emt 0:02:26]} e6 {[%emt 0:00:46]} 13. O-O {[%emt 0:00:12]} Be7 {[%emt 0:02:08]} 14. Qg4 {[%emt 0:02:32]} O-O {[%emt 0:06:05]} 15. Rfd1 {[%emt 0:23:57]} Kh8 {[%emt 0:17:35]} 16. Rac1 {[%emt 0:20:43]} a6 {[%emt 0:12:07]} 17. Bxc6 {[%emt 0:02:47]} bxc6 {[%emt 0:00:46]} 18. Qe2 {[%emt 0:08:45]} Qb7 {[%emt 0:17:04]} 19. b3 {[%emt 0:04:15]} a5 {[%emt 0:09:16]} 20. Qc2 {[%emt 0:05:39]} Ba3 {[%emt 0:02:18]} 21. Rb1 {[%emt 0:00:04]} Nd5 {[%emt 0:00:36]} 22. Na4 {[%emt 0:09:51]} Rfe8 {[%emt 0:01:25]} 23. Bd2 {[%emt 0:01:34]} Qa8 {[%emt 0:01:55]} 24. Bc3 {[%emt 0:00:32]} Rc8 {[%emt 0:02:07]} 25. Qd2 {[%emt 0:02:16]} Bb4 {[%emt 0:03:51]} 26. Bxb4 {[%emt 0:00:04]} axb4 {[%emt 0:00:03]} 27. Re1 {[%emt 0:00:43]} Rcd8 {[%emt 0:01:29]} 28. Rbc1 {[%emt 0:00:32]} Rd6 {[%emt 0:00:45]} 29. Rc4 {[%emt 0:03:17]} Qb7 {[%emt 0:00:59]} 30. Nc5 {[%emt 0:00:25]} Qe7 {[%emt 0:01:22]} 31. Ne4 {[%emt 0:00:41]} Rdd8 {[%emt 0:00:30]} 32. Rxc6 {[%emt 0:00:20]} Qa7 {[%emt 0:01:50]} 33. h3 {[%emt 0:05:22]} Qb8 {[%emt 0:03:58]} 34. Ng5 {[%emt 0:00:39]} Kg8 {[%emt 0:00:24]} 35. Qc2 {[%emt 0:00:56]} Nf6 {[%emt 0:00:33]} 36. Rc7 {[%emt 0:00:30]} Rxd4 {[%emt 0:01:33]} 37. Rxf7 {[%emt 0:01:45]} Rc8 {[%emt 0:00:33]} 38. Qb1 {[%emt 0:00:23]} Rh4 {[%emt 0:00:30]} 39. Nf3 {[%emt 0:00:52]} Kxf7 {[%emt 0:00:18]} 40. Nxh4 {[%emt 0:00:01]} Qf4 {[%emt 0:00:34]} 41. Nf3 {[%emt 0:00:10]} Kg8 {[%emt 0:00:19]} 42. Qd3 {[%emt 0:00:34]} Re8 {[%emt 0:00:48]} 43. Qa6 {[%emt 0:01:12]} e5 {[%emt 0:00:31]} 44. Qc4+ {[%emt 0:00:45]} Qxc4 {[%emt 0:00:14]} 45. bxc4 {[%emt 0:00:02]} e4 {[%emt 0:00:42]} 46. Nd2 {[%emt 0:00:07]} Ra8 {[%emt 0:00:31]} 47. Nxe4 {[%emt 0:00:34]} Nxe4 {[%emt 0:00:31]} 48. Rxe4 {[%emt 0:00:03]} Rxa2 {[%emt 0:00:01]} 49. c5 {[%emt 0:00:09]} Rc2 {[%emt 0:00:52]} 50. Rxb4 {[%emt 0:00:08]} Rxc5 {[%emt 0:00:05]} 51. Rb7 {[%emt 0:00:03]} Kf8 {[%emt 0:00:06]} 52. g3 {[%emt 0:00:07]} h5 {[%emt 0:01:26]} 53. Kg2 {[%emt 0:00:02]} Rf5 {[%emt 0:00:25]} 54. g4 {[%emt 0:00:11]} hxg4 {[%emt 0:00:05]} 55. hxg4 {[%emt 0:00:02]} Ra5 {[%emt 0:00:12]} 56. Kg3 {[%emt 0:00:01]} g5 {[%emt 0:00:32]} 57. f3 {[%emt 0:00:14]} Kg8 {[%emt 0:00:54]} 58. Rd7 {[%emt 0:00:21]} Kf8 {[%emt 0:00:24]} 59. Kf2 {[%emt 0:00:19]} Re5 {[%emt 0:00:06]} 60. Rd3 {[%emt 0:00:20]} Kf7 {[%emt 0:00:34]} 61. Re3 {[%emt 0:00:04]} Ra5 {[%emt 0:00:07]} 62. Rb3 {[%emt 0:00:19]} Re5 {[%emt 0:00:05]} 63. Rb6 {[%emt 0:00:06]} Kg7 {[%emt 0:00:06]} 64. Rb4 {[%emt 0:00:29]} Kf6 {[%emt 0:00:18]} 65. Re4 {[%emt 0:00:12]} Ra5 {[%emt 0:00:04]} 66. Kg3 {[%emt 0:00:05]} Ra6 {[%emt 0:00:23]} 67. Rb4 {[%emt 0:00:08]} Kg6 {[%emt 0:00:10]} 68. Rb5 {[%emt 0:00:03]} Kf6 {[%emt 0:00:07]} 69. Rb3 {[%emt 0:01:01]} Kg6 {[%emt 0:00:09]} 70. Re3 {[%emt 0:00:04]} Kf6 {[%emt 0:00:06]} 71. f4 {[%emt 0:00:05]} gxf4+ {[%emt 0:00:04]} 72. Kxf4 {[%emt 0:00:01]} Kg6 {[%emt 0:00:21]} 73. Re4 {[%emt 0:00:04]} Rf6+ {[%emt 0:00:13]} 74. Kg3 {[%emt 0:00:03]} Ra6 {[%emt 0:00:05]} 75. Re5 {[%emt 0:00:05]} Rb6 {[%emt 0:00:14]} 76. Kh4 {[%emt 0:00:05]} Ra6 {[%emt 0:00:19]} 1/2-1/2

[Event "30th Abu Dhabi Festival A-Open 2024"]
[Site "Abu Dhabi"]
[Date "2024.08.17"]
[Round "2.8"]
[White "Fadi, Marko"]
[Black "Chinmay Kowshik"]
[Result "1/2-1/2"]
[ECO "B41"]
[WhiteElo "2221"]
[BlackElo "1918"]
[Annotator "ChessBase"]
[PlyCount "109"]
[EventDate "2024.08.15"]
[EventType "swiss"]
[EventCountry "UAE"]
[SourceTitle "playchess.com"]
[Source "ChessBase"]
[SourceQuality "1"]
[TimeControl "5400+30"]

1. e4 {[%emt 0:05:27]} c5 {[%emt 0:00:48]} 2. Nf3 {[%emt 0:00:24]} e6 {[%emt 0:00:12]} 3. d4 {[%emt 0:00:18]} cxd4 {[%emt 0:00:08]} 4. Nxd4 {[%emt 0:00:07]} a6 {[%emt 0:00:07]} 5. g3 {[%emt 0:03:52]} Bc5 {[%emt 0:04:18]} 6. Nb3 {[%emt 0:03:38]} Ba7 {[%emt 0:05:23]} 7. Bg2 {[%emt 0:01:35]} Nc6 {[%emt 0:02:19]} 8. O-O {[%emt 0:03:04]} Nge7 {[%emt 0:05:46]} 9. c4 {[%emt 0:16:30]} d6 {[%emt 0:03:14]} 10. Qe2 {[%emt 0:03:03]} Ng6 {[%emt 0:03:40]} 11. Be3 {[%emt 0:06:02]} Bxe3 {[%emt 0:11:45]} 12. Qxe3 {[%emt 0:00:10]} Nge5 {[%emt 0:06:18]} 13. N1d2 {[%emt 0:04:14]} Qf6 {[%emt 0:12:14]} 14. f4 {[%emt 0:07:33]} Ng4 {[%emt 0:03:46]} 15. Qe2 {[%emt 0:03:23]} e5 {[%emt 0:05:25]} 16. h3 {[%emt 0:01:34]} Nh6 {[%emt 0:01:32]} 17. f5 {[%emt 0:00:11]} Qe7 {[%emt 0:03:30]} 18. Rad1 {[%emt 0:08:24]} b5 {[%emt 0:12:50]} 19. Kh2 {[%emt 0:06:38]} b4 {[%emt 0:04:34]} 20. Nf3 {[%emt 0:05:38]} f6 {[%emt 0:04:13]} 21. c5 {[%emt 0:05:23]} Nf7 {[%emt 0:04:36]} 22. cxd6 {[%emt 0:04:31]} Nxd6 {[%emt 0:00:06]} 23. Qc2 {[%emt 0:00:09]} Bd7 {[%emt 0:04:02]} 24. Nc5 {[%emt 0:00:40]} Rd8 {[%emt 0:01:12]} 25. Rd5 {[%emt 0:02:32]} Na7 {[%emt 0:00:29]} 26. Nxd7 {[%emt 0:01:24]} Rxd7 {[%emt 0:00:28]} 27. Rfd1 {[%emt 0:00:24]} Nab5 {[%emt 0:00:33]} 28. Bf1 {[%emt 0:01:41]} Nc7 {[%emt 0:00:29]} 29. R5d2 {[%emt 0:00:54]} O-O {[%emt 0:00:31]} 30. Qb3+ {[%emt 0:02:07]} Kh8 {[%emt 0:00:05]} 31. Qxb4 {[%emt 0:00:03]} Rfd8 {[%emt 0:00:39]} 32. Qa4 {[%emt 0:01:19]} Ndb5 {[%emt 0:00:10]} 33. Rxd7 {[%emt 0:01:32]} Rxd7 {[%emt 0:00:04]} 34. Rxd7 {[%emt 0:00:35]} Qxd7 {[%emt 0:00:05]} 35. Qc4 {[%emt 0:00:28]} Nd6 {[%emt 0:00:30]} 36. Qc2 {[%emt 0:00:50]} Ncb5 {[%emt 0:01:20]} 37. a4 {[%emt 0:00:54]} Qc7 {[%emt 0:00:33]} 38. Qxc7 {[%emt 0:01:34]} Nxc7 {[%emt 0:00:05]} 39. Bd3 {[%emt 0:00:08]} Kg8 {[%emt 0:00:40]} 40. Kg2 {[%emt 0:00:37]} Kf7 {[%emt 0:00:07]} 41. Kf2 {[%emt 0:00:10]} Ke7 {[%emt 0:00:12]} 42. b4 {[%emt 0:00:52]} Nb7 {[%emt 0:00:23]} 43. Ke3 {[%emt 0:00:41]} a5 {[%emt 0:00:22]} 44. b5 {[%emt 0:00:11]} Na8 {[%emt 0:00:26]} 45. Nd2 {[%emt 0:00:40]} Nb6 {[%emt 0:00:17]} 46. Bc2 {[%emt 0:00:07]} Kd6 {[%emt 0:00:20]} 47. Nb3 {[%emt 0:01:08]} Nxa4 {[%emt 0:00:25]} 48. Nxa5 {[%emt 0:00:02]} Nxa5 {[%emt 0:00:11]} 49. Bxa4 {[%emt 0:00:05]} Nc4+ {[%emt 0:01:00]} 50. Ke2 {[%emt 0:01:03]} Kc5 {[%emt 0:00:07]} 51. g4 {[%emt 0:00:26]} Nd6 {[%emt 0:01:52]} 52. Kd3 {[%emt 0:00:28]} Kb4 {[%emt 0:00:12]} 53. Bd1 {[%emt 0:00:42]} Kxb5 {[%emt 0:00:30]} 54. h4 {[%emt 0:00:30]} Kb4 {[%emt 0:00:38]} 55. g5 {[%emt 0:00:18]} 1/2-1/2

[Event "30th Abu Dhabi Festival A-Open 2024"]
[Site "Abu Dhabi"]
[Date "2024.08.17"]
[Round "2.9"]
[White "Kholyavko, Mariya"]
[Black "Dere Pushkar"]
[Result "0-1"]
[ECO "B15"]
[WhiteElo "1901"]
[BlackElo "2217"]
[Annotator "ChessBase"]
[PlyCount "104"]
[EventDate "2024.08.15"]
[EventType "swiss"]
[EventCountry "UAE"]
[SourceTitle "playchess.com"]
[Source "ChessBase"]
[SourceQuality "1"]
[TimeControl "5400+30"]

1. e4 {[%emt 0:00:30]} c6 {[%emt 0:00:30]} 2. d4 {[%emt 0:00:30]} d5 {[%emt 0:00:30]} 3. Nc3 {[%emt 0:00:30]} dxe4 {[%emt 0:00:30]} 4. Nxe4 {[%emt 0:00:30]} Nf6 {[%emt 0:00:30]} 5. Nxf6+ {[%emt 0:00:30]} exf6 {[%emt 0:00:30]} 6. c3 {[%emt 0:00:30]} Bd6 {[%emt 0:00:30]} 7. Bd3 {[%emt 0:00:30]} O-O {[%emt 0:00:30]} 8. Qc2 {[%emt 0:00:30]} Re8+ {[%emt 0:00:30]} 9. Ne2 {[%emt 0:00:30]} h5 {[%emt 0:00:30]} 10. Be3 {[%emt 0:00:30]} Nd7 {[%emt 0:00:30]} 11. O-O-O {[%emt 0:00:30]} b5 {[%emt 0:00:30]} 12. d5 {[%emt 0:00:30]} c5 {[%emt 0:00:30]} 13. Bxb5 {[%emt 0:00:30]} Rb8 {[%emt 0:00:30]} 14. c4 {[%emt 0:00:30]} Qa5 {[%emt 0:00:30]} 15. Nc3 {[%emt 0:00:30]} a6 {[%emt 0:00:30]} 16. Ba4 {[%emt 0:00:30]} Qb4 {[%emt 0:00:30]} 17. Bb3 {[%emt 0:00:30]} a5 {[%emt 0:00:30]} 18. Nb5 {[%emt 0:00:30]} Rxb5 {[%emt 0:00:30]} 19. cxb5 {[%emt 0:00:30]} Nb6 {[%emt 0:00:30]} 20. Rhe1 {[%emt 0:00:30]} a4 {[%emt 0:00:30]} 21. Bd2 {[%emt 0:00:30]} Qxb5 {[%emt 0:00:30]} 22. Bc4 {[%emt 0:00:30]} Nxc4 {[%emt 0:00:30]} 23. Rxe8+ {[%emt 0:00:30]} Qxe8 {[%emt 0:00:30]} 24. Qxc4 {[%emt 0:00:30]} Bf5 {[%emt 0:00:30]} 25. Re1 {[%emt 0:00:30]} Qa8 {[%emt 0:00:30]} 26. Bc3 {[%emt 0:00:30]} a3 {[%emt 0:00:30]} 27. b3 {[%emt 0:00:30]} Kh7 {[%emt 0:00:30]} 28. g3 {[%emt 0:00:30]} Bg6 {[%emt 0:00:30]} 29. h3 {[%emt 0:00:30]} Qb8 {[%emt 0:00:30]} 30. f4 {[%emt 0:00:30]} Qc8 {[%emt 0:00:30]} 31. Bd2 {[%emt 0:00:30]} Qf5 {[%emt 0:00:30]} 32. Kd1 {[%emt 0:00:30]} Qxh3 {[%emt 0:00:30]} 33. Qe2 {[%emt 0:00:30]} Qf5 {[%emt 0:00:30]} 34. Bc1 {[%emt 0:00:30]} Qxd5+ {[%emt 0:00:30]} 35. Bd2 {[%emt 0:00:30]} Bd3 {[%emt 0:00:30]} 36. Qe8 {[%emt 0:00:30]} c4 {[%emt 0:00:30]} 37. Qa4 {[%emt 0:00:30]} cxb3 {[%emt 0:00:30]} 38. Qxb3 {[%emt 0:00:30]} Qxb3+ {[%emt 0:00:30]} 39. axb3 {[%emt 0:00:30]} a2 {[%emt 0:00:30]} 40. Bc3 {[%emt 0:00:30]} Bb4 {[%emt 0:00:30]} 41. Ba1 {[%emt 0:00:30]} Bc2+ {[%emt 0:00:30]} 42. Ke2 {[%emt 0:00:30]} Bxe1 {[%emt 0:00:30]} 43. Kxe1 {[%emt 0:00:30]} Bxb3 {[%emt 0:00:30]} 44. Kd2 {[%emt 0:00:30]} Kg6 {[%emt 0:00:30]} 45. Ke3 {[%emt 0:00:30]} Kf5 {[%emt 0:00:30]} 46. Bb2 {[%emt 0:00:30]} Kg4 {[%emt 0:00:30]} 47. Kf2 {[%emt 0:00:30]} h4 {[%emt 0:00:30]} 48. gxh4 {[%emt 0:00:30]} Kxf4 {[%emt 0:00:30]} 49. h5 {[%emt 0:00:30]} Kg5 {[%emt 0:00:30]} 50. Kg3 {[%emt 0:00:30]} Kxh5 {[%emt 0:00:30]} 51. Bc3 {[%emt 0:00:30]} Kg5 {[%emt 0:00:30]} 52. Bb2 {[%emt 0:00:30]} Kf5 {[%emt 0:00:30]} 0-1

[Event "30th Abu Dhabi Festival A-Open 2024"]
[Site "Abu Dhabi"]
[Date "2024.08.17"]
[Round "2.10"]
[White "Manukyan, Sargis A."]
[Black "AbuAzizah, Raji"]
[Result "1-0"]
[ECO "E61"]
[WhiteElo "2211"]
[BlackElo "1913"]
[Annotator "ChessBase"]
[PlyCount "107"]
[EventDate "2024.08.15"]
[EventType "swiss"]
[EventCountry "UAE"]
[SourceTitle "playchess.com"]
[Source "ChessBase"]
[SourceQuality "1"]
[TimeControl "5400+30"]

1. d4 {[%emt 0:00:03]} Nf6 {[%emt 0:11:10]} 2. c4 {[%emt 0:00:04]} g6 {[%emt 0:00:10]} 3. Nc3 {[%emt 0:00:04]} Bg7 {[%emt 0:00:07]} 4. Nf3 {[%emt 0:00:04]} O-O {[%emt 0:00:17]} 5. Bg5 {[%emt 0:00:06]} d6 {[%emt 0:00:43]} 6. e3 {[%emt 0:00:05]} Nbd7 {[%emt 0:00:39]} 7. Be2 {[%emt 0:00:12]} b6 {[%emt 0:00:46]} 8. O-O {[%emt 0:00:07]} Bb7 {[%emt 0:00:06]} 9. Qc2 {[%emt 0:00:33]} h6 {[%emt 0:01:05]} 10. Bh4 {[%emt 0:00:05]} c5 {[%emt 0:02:50]} 11. d5 {[%emt 0:00:22]} Re8 {[%emt 0:03:35]} 12. Rad1 {[%emt 0:03:12]} a6 {[%emt 0:03:29]} 13. a4 {[%emt 0:00:23]} Ne5 14. Nxe5 {[%emt 0:01:23]} dxe5 {[%emt 0:02:40]} 15. Bg3 {[%emt 0:00:59]} Qc7 {[%emt 0:02:33]} 16. f4 {[%emt 0:00:27]} exf4 17. exf4 {[%emt 0:00:56]} Qd7 {[%emt 0:08:52]} 18. f5 {[%emt 0:00:23]} g5 {[%emt 0:01:07]} 19. h4 {[%emt 0:01:36]} gxh4 20. Bxh4 {[%emt 0:04:07]} Kh8 {[%emt 0:01:34]} 21. Rf3 {[%emt 0:01:35]} Rg8 {[%emt 0:02:00]} 22. Rh3 {[%emt 0:00:12]} Nh7 {[%emt 0:02:04]} 23. Bd3 {[%emt 0:01:41]} f6 {[%emt 0:12:01]} 24. Ne4 {[%emt 0:01:09]} Bf8 {[%emt 0:05:05]} 25. a5 {[%emt 0:00:20]} Qd8 {[%emt 0:09:09]} 26. Bf2 {[%emt 0:03:02]} Bc8 {[%emt 0:00:46]} 27. Rh5 {[%emt 0:03:37]} Rb8 {[%emt 0:03:06]} 28. Be3 {[%emt 0:02:33]} Qe8 {[%emt 0:06:13]} 29. Qe2 {[%emt 0:02:25]} bxa5 {[%emt 0:00:35]} 30. Bxh6 {[%emt 0:02:07]} Rxb2 {[%emt 0:12:30]} 31. Rd2 {[%emt 0:00:15]} Bxh6 {[%emt 0:02:15]} 32. Rxb2 {[%emt 0:01:28]} Be3+ {[%emt 0:00:01]} 33. Kh1 {[%emt 0:01:51]} Bd4 {[%emt 0:00:02]} 34. Ra2 {[%emt 0:02:24]} a4 {[%emt 0:00:02]} 35. g4 {[%emt 0:00:59]} Rg7 {[%emt 0:01:08]} 36. Nd6 {[%emt 0:04:11]} Qg8 {[%emt 0:00:57]} 37. Nxc8 {[%emt 0:02:01]} Rxg4 {[%emt 0:00:01]} 38. Qxg4 Qxg4 {[%emt 0:00:22]} 39. Rxh7+ Kxh7 {[%emt 0:00:50]} 40. Rh2+ {[%emt 0:00:34]} Kg7 {[%emt 0:00:45]} 41. Rg2 {[%emt 0:00:05]} Qxg2+ 42. Kxg2 {[%emt 0:00:05]} a3 {[%emt 0:00:31]} 43. Bb1 {[%emt 0:00:04]} Kf7 {[%emt 0:00:11]} 44. Na7 {[%emt 0:00:18]} Ke8 {[%emt 0:00:53]} 45. Nc6 {[%emt 0:00:06]} Bc3 {[%emt 0:00:33]} 46. Kf3 {[%emt 0:00:05]} a5 {[%emt 0:01:43]} 47. Ke2 {[%emt 0:00:06]} Kd7 {[%emt 0:00:17]} 48. Na7 {[%emt 0:00:25]} Bb4 {[%emt 0:00:29]} 49. Nb5 {[%emt 0:00:05]} Ke8 {[%emt 0:00:39]} 50. Kd3 {[%emt 0:00:11]} Kf7 {[%emt 0:00:08]} 51. Kc2 {[%emt 0:00:39]} a4 {[%emt 0:00:23]} 52. Nc3 {[%emt 0:00:22]} Bxc3 53. Kxc3 {[%emt 0:00:05]} Kg7 {[%emt 0:01:06]} 54. Bc2 {[%emt 0:00:04]} 1-0

[Event "30th Abu Dhabi Festival A-Open 2024"]
[Site "Abu Dhabi"]
[Date "2024.08.17"]
[Round "2.11"]
[White "Farhat, Jawad"]
[Black "Abdullayev, Elshad"]
[Result "0-1"]
[ECO "D35"]
[WhiteElo "1892"]
[BlackElo "2205"]
[Annotator "ChessBase"]
[PlyCount "92"]
[EventDate "2024.08.15"]
[EventType "swiss"]
[EventCountry "UAE"]
[SourceTitle "playchess.com"]
[Source "ChessBase"]
[SourceQuality "1"]
[TimeControl "5400+30"]

1. d4 {[%emt 0:00:02]} Nf6 {[%emt 0:05:29]} 2. c4 {[%emt 0:00:12]} e6 {[%emt 0:00:26]} 3. Nf3 {[%emt 0:00:17]} d5 {[%emt 0:00:27]} 4. Nc3 {[%emt 0:00:11]} Nbd7 {[%emt 0:02:10]} 5. cxd5 exd5 {[%emt 0:00:19]} 6. Bg5 {[%emt 0:02:42]} c6 {[%emt 0:00:46]} 7. e3 {[%emt 0:00:17]} Bd6 {[%emt 0:10:05]} 8. Bd3 {[%emt 0:02:20]} Nf8 {[%emt 0:01:14]} 9. Ne5 {[%emt 0:06:42]} Qb6 {[%emt 0:24:18]} 10. Qc2 {[%emt 0:41:33]} Bxe5 11. dxe5 {[%emt 0:00:07]} N6d7 {[%emt 0:42:29]} 12. Bf4 {[%emt 0:01:51]} Nc5 {[%emt 0:01:53]} 13. O-O {[%emt 0:06:00]} Nxd3 14. Qxd3 {[%emt 0:00:04]} Ng6 {[%emt 0:05:12]} 15. Bg3 {[%emt 0:06:56]} O-O {[%emt 0:00:16]} 16. f4 {[%emt 0:03:00]} f5 {[%emt 0:00:05]} 17. exf6 gxf6 18. f5 {[%emt 0:04:48]} Ne5 {[%emt 0:03:11]} 19. Qe2 {[%emt 0:03:38]} Qc7 {[%emt 0:00:01]} 20. Rac1 {[%emt 0:00:59]} Qe7 {[%emt 0:00:35]} 21. Rcd1 {[%emt 0:02:53]} b5 {[%emt 0:01:24]} 22. e4 {[%emt 0:04:23]} b4 {[%emt 0:00:00]} 23. Na4 {[%emt 0:00:02]} dxe4 {[%emt 0:01:07]} 24. Qxe4 {[%emt 0:00:22]} Ba6 {[%emt 0:00:13]} 25. Rfe1 {[%emt 0:00:50]} Bb5 {[%emt 0:00:11]} 26. Bxe5 {[%emt 0:00:29]} fxe5 {[%emt 0:00:37]} 27. b3 {[%emt 0:04:05]} Rad8 {[%emt 0:00:02]} 28. Rxd8 {[%emt 0:02:22]} Rxd8 {[%emt 0:00:01]} 29. Qxe5 {[%emt 0:02:20]} Qxe5 {[%emt 0:00:24]} 30. Rxe5 {[%emt 0:00:01]} Bxa4 {[%emt 0:00:38]} 31. bxa4 {[%emt 0:00:02]} Rd2 {[%emt 0:00:08]} 32. Re4 {[%emt 0:02:31]} a5 {[%emt 0:00:33]} 33. h4 {[%emt 0:03:23]} Rxa2 {[%emt 0:00:58]} 34. Kh2 {[%emt 0:01:35]} Rxa4 {[%emt 0:01:03]} 35. Rc4 {[%emt 0:00:30]} b3 {[%emt 0:00:33]} 36. Rxa4 {[%emt 0:00:04]} b2 {[%emt 0:00:01]} 37. Rxa5 {[%emt 0:00:05]} b1=Q {[%emt 0:00:07]} 38. Ra8+ {[%emt 0:00:31]} Kf7 {[%emt 0:00:14]} 39. Ra7+ {[%emt 0:00:07]} Kf6 {[%emt 0:01:05]} 40. Rxh7 {[%emt 0:00:12]} Qc1 {[%emt 0:00:57]} 41. Rb7 {[%emt 0:01:57]} Qf4+ {[%emt 0:00:35]} 42. Kh3 {[%emt 0:00:05]} Qxf5+ {[%emt 0:00:10]} 43. Kg3 {[%emt 0:00:07]} Qd3+ {[%emt 0:00:26]} 44. Kf4 {[%emt 0:00:29]} Qd4+ {[%emt 0:00:26]} 45. Kg3 {[%emt 0:00:02]} c5 {[%emt 0:00:08]} 46. Rb6+ {[%emt 0:00:06]} Ke5 {[%emt 0:02:33]} 0-1

[Event "30th Abu Dhabi Festival A-Open 2024"]
[Site "Abu Dhabi"]
[Date "2024.08.17"]
[Round "2.12"]
[White "Al Rahbi, Ahmed Badar"]
[Black "Alboredo, Julia"]
[Result "1/2-1/2"]
[ECO "E28"]
[WhiteElo "1890"]
[BlackElo "2178"]
[Annotator "ChessBase"]
[PlyCount "45"]
[EventDate "2024.08.15"]
[EventType "swiss"]
[EventCountry "UAE"]
[SourceTitle "playchess.com"]
[Source "ChessBase"]
[SourceQuality "1"]
[TimeControl "5400+30"]

1. d4 Nf6 2. c4 e6 3. Nc3 Bb4 4. a3 Bxc3+ 5. bxc3 O-O 6. f3 Ne8 7. e4 c5 8. Bd3 Nc6 9. Ne2 b6 10. O-O Ba6 11. e5 f5 12. Be3 Na5 13. dxc5 Nxc4 14. Bxc4 Bxc4 15. Re1 b5 16. a4 Nc7 17. Qd4 Nd5 18. Bf2 Bxe2 19. Rxe2 Qa5 20. Be1 bxa4 21. c4 Nb4 22. Rea2 Nc6 23. Qd6 1/2-1/2

[Event "30th Abu Dhabi Festival A-Open 2024"]
[Site "Abu Dhabi"]
[Date "2024.08.18"]
[Round "3.1"]
[White "Kabinazar, Nurmukhammed"]
[Black "Yeremyan, Alen"]
[Result "0-1"]
[ECO "B30"]
[WhiteElo "2002"]
[BlackElo "2279"]
[Annotator "ChessBase"]
[PlyCount "67"]
[EventDate "2024.08.15"]
[EventType "swiss"]
[EventCountry "UAE"]
[SourceTitle "playchess.com"]
[Source "ChessBase"]
[SourceQuality "1"]
[TimeControl "5400+30"]

1. e4 {[%emt 0:00:04]} c5 {[%emt 0:00:10]} 2. Nf3 {[%emt 0:00:08]} Nc6 {[%emt 0:00:05]} 3. Bb5 {[%emt 0:00:11]} e6 {[%emt 0:00:14]} 4. Bxc6 {[%emt 0:00:33]} bxc6 {[%emt 0:00:05]} 5. b3 {[%emt 0:00:08]} d6 {[%emt 0:00:58]} 6. e5 {[%emt 0:00:39]} Ne7 {[%emt 0:02:09]} 7. exd6 {[%emt 0:03:16]} Nf5 {[%emt 0:00:29]} 8. Nc3 {[%emt 0:01:42]} Bxd6 {[%emt 0:01:11]} 9. O-O {[%emt 0:01:16]} O-O {[%emt 0:01:22]} 10. d3 {[%emt 0:02:25]} f6 {[%emt 0:07:06]} 11. Na4 {[%emt 0:06:51]} Nd4 {[%emt 0:07:39]} 12. Nd2 {[%emt 0:07:00]} Qc7 {[%emt 0:06:54]} 13. h3 {[%emt 0:02:10]} e5 {[%emt 0:02:53]} 14. Ne4 {[%emt 0:05:02]} f5 {[%emt 0:06:04]} 15. Nxd6 {[%emt 0:03:26]} Qxd6 {[%emt 0:00:01]} 16. Ba3 {[%emt 0:00:50]} f4 {[%emt 0:07:39]} 17. Bxc5 {[%emt 0:28:37]} Qg6 {[%emt 0:00:23]} 18. Kh2 {[%emt 0:01:30]} f3 {[%emt 0:06:23]} 19. g4 {[%emt 0:00:33]} Rf4 {[%emt 0:06:18]} 20. Bxd4 {[%emt 0:02:38]} exd4 {[%emt 0:03:56]} 21. Rg1 {[%emt 0:01:51]} Qd6 {[%emt 0:03:27]} 22. Rg3 {[%emt 0:00:35]} Be6 {[%emt 0:01:12]} 23. Qd2 {[%emt 0:01:12]} Raf8 {[%emt 0:00:29]} 24. Kg1 {[%emt 0:03:45]} R4f7 {[%emt 0:01:45]} 25. c4 {[%emt 0:09:25]} Bc8 {[%emt 0:08:42]} 26. b4 {[%emt 0:08:34]} Re8 27. Nc5 {[%emt 0:00:30]} Re2 {[%emt 0:04:49]} 28. Qd1 {[%emt 0:05:22]} Qf4 {[%emt 0:03:15]} 29. Ne4 {[%emt 0:00:12]} Re7 {[%emt 0:03:08]} 30. Nc5 {[%emt 0:04:20]} Rxf2 {[%emt 0:01:42]} 31. Kxf2 {[%emt 0:00:04]} Re2+ {[%emt 0:00:06]} 32. Qxe2 {[%emt 0:00:06]} fxe2+ {[%emt 0:00:05]} 33. Kg2 {[%emt 0:00:05]} Qd2 {[%emt 0:00:17]} 34. Ne4 {[%emt 0:02:14]} 0-1

[Event "30th Abu Dhabi Festival A-Open 2024"]
[Site "Abu Dhabi"]
[Date "2024.08.18"]
[Round "3.2"]
[White "Bolashakov, Nurali"]
[Black "Lad Mandar Pradip"]
[Result "0-1"]
[ECO "B94"]
[WhiteElo "2000"]
[BlackElo "2254"]
[Annotator "ChessBase"]
[PlyCount "40"]
[EventDate "2024.08.15"]
[EventType "swiss"]
[EventCountry "UAE"]
[SourceTitle "playchess.com"]
[Source "ChessBase"]
[SourceQuality "1"]
[TimeControl "5400+30"]

1. e4 {[%emt 0:00:02]} c5 {[%emt 0:03:27]} 2. Nf3 {[%emt 0:00:49]} d6 {[%emt 0:00:10]} 3. d4 {[%emt 0:00:43]} cxd4 {[%emt 0:00:06]} 4. Nxd4 {[%emt 0:00:08]} Nf6 {[%emt 0:00:03]} 5. Nc3 {[%emt 0:00:14]} a6 {[%emt 0:00:06]} 6. Bg5 {[%emt 0:00:28]} Nbd7 {[%emt 0:00:15]} 7. Bc4 {[%emt 0:03:04]} Qb6 {[%emt 0:07:46]} 8. Bb3 {[%emt 0:02:22]} e6 {[%emt 0:05:14]} 9. O-O {[%emt 0:09:50]} Be7 {[%emt 0:06:34]} 10. Be3 {[%emt 0:05:12]} Nc5 {[%emt 0:10:03]} 11. Ba4+ {[%emt 0:13:07]} Nxa4 {[%emt 0:08:35]} 12. Nxa4 {[%emt 0:09:03]} Qa5 {[%emt 0:38:42]} 13. Nc3 {[%emt 0:03:33]} O-O {[%emt 0:03:01]} 14. a4 {[%emt 0:05:48]} Bd7 {[%emt 0:00:59]} 15. Qd2 {[%emt 0:04:50]} Qc7 {[%emt 0:01:30]} 16. f3 {[%emt 0:01:43]} b6 {[%emt 0:01:31]} 17. Qf2 {[%emt 0:04:28]} Rfc8 {[%emt 0:02:12]} 18. Nb3 {[%emt 0:04:51]} b5 {[%emt 0:01:20]} 19. Bb6 {[%emt 0:00:50]} Qb7 {[%emt 0:01:14]} 20. Rfc1 {[%emt 0:02:40]} e5 {[%emt 0:02:50]} 0-1